fUSD/lending_fUSD_20240530
["ID","MTS","AMOUNT","RATE_DAILY","PERIOD"]
[328206022,1717057863140,-500.0,0.00029544,7]
[328206023,1717057863150,-500.0,0.00029544,7]
[328206024,1717057863160,-500.0,0.00029544,7]
[328206025,1717057863169,-2182.01,0.00029544,7]
[328206026,1717057863179,-149.14578847,0.00029544,7]
[328206027,1717057863195,-350.85421153,0.00029544,7]
[328206028,1717057863205,-175.18012696,0.00029544,7]
[328206029,1717057863217,-324.81987304,0.00029544,7]
[328206030,1717057863226,-500.0,0.00029544,7]
[328206031,1717057863235,-500.0,0.00029544,7]
[328206032,1717057863246,-358.25512696,0.00029544,7]
[328206033,1717057863261,-141.74487304,0.00029544,7]
[328206034,1717057863271,-500.0,0.00029544,7]
[328206035,1717057863280,-500.0,0.00029544,7]
[328206036,1717057863291,-500.0,0.00029544,7]
[328206037,1717057863300,-292.18244709,0.00029544,7]
[328206038,1717057863312,-207.81755291,0.00029544,7]
[328206039,1717057863322,-126.28644709,0.00029544,7]
[328206041,1717057932616,154.89,0.00013973,2]
[328206046,1717058198386,107137.99278867,0.00013,2]
[328206047,1717058230735,1949.1599887,0.00030987,31]
[328206050,1717058394270,2033.51346922,0.00033,90]
[328206051,1717058413228,155.91,0.00013973,2]
[328206052,1717058847912,180.95,0.00026891,120]
[328206061,1717059032339,-166.23381005,0.00017223,2]
[328206062,1717059032348,-237.72200736,0.00017224,2]
[328206063,1717059032358,-226.14644221,0.00017225,2]
[328206064,1717059032401,-461.23972498,0.00017225,2]
[328206065,1717059032410,-162.31300636,0.00017226,2]
[328206066,1717059032428,-150.0,0.00019451,2]
[328206067,1717059032438,-499.99,0.00019726,2]
[328206069,1717059032448,-242.22,0.00019726,2]
[328206071,1717059032458,-150.99,0.00019726,2]
[328206073,1717059032467,-362.09,0.00024753,2]
[328206074,1717059032476,-499.99,0.00024753,2]
[328206075,1717059032485,-7719.56819472,0.00024753,2]
[328206076,1717059032503,-792.5901174,0.00024753,2]
[328206077,1717059032515,-1487.83168788,0.00024753,2]
[328206078,1717059032524,-825.74,0.00025203,2]
[328206079,1717059032534,-818.84688827,0.00026611,2]
[328206080,1717059032546,-564.53311173,0.00026611,2]
[328206081,1717059032556,-1000.0,0.00026652,2]
[328206082,1717059032565,-250.0,0.00026672,2]
[328206083,1717059032575,-200.0,0.00026695,2]
[328206084,1717059032584,-354.66,0.00026696,2]
[328206085,1717059032594,-250.0,0.00026729,2]
[328206086,1717059032604,-250.0,0.00026743,2]
[328206087,1717059032613,-500.0,0.00026747,2]
[328206088,1717059032623,-1431.08,0.00026772,2]
[328206089,1717059032633,-1747.7,0.00026842,2]
[328206090,1717059032643,-800.0,0.00026862,2]
[328206091,1717059032652,-285.17,0.00026876,2]
[328206092,1717059032662,-294.98,0.00026964,2]
[328206093,1717059032672,-362.09,0.00027017,2]
[328206094,1717059032682,-294.98,0.00027038,2]
[328206095,1717059032691,-154.999999,0.0002705,2]
[328206096,1717059032702,-162.55,0.00027072,2]
[328206097,1717059032711,-294.98,0.00027112,2]
[328206098,1717059032720,-294.98,0.00027186,2]
[328206099,1717059032730,-294.98,0.0002726,2]
[328206100,1717059032740,-53.99127855,0.00027334,2]
[328206101,1717059032757,-240.98872145,0.00027334,2]
[328206102,1717059032767,-294.98,0.00027408,2]
[328206103,1717059032776,-294.98,0.00027482,2]
[328206104,1717059032786,-123.82900574,0.00027556,2]
[328206105,1717059032798,-171.15099426,0.00027556,2]
[328206106,1717059032808,-177.84900574,0.0002763,2]
[328206107,1717059032828,-117.13099426,0.0002763,2]
[328206108,1717059032837,-155.91,0.00027641,2]
[328206109,1717059032846,-294.98,0.00027704,2]
[328206110,1717059032855,-41.65900572,0.00027778,2]
[328206111,1717059032867,-253.32099428,0.00027778,2]
[328206112,1717059032878,-294.98,0.00027852,2]
[328206113,1717059032887,-294.98,0.00027926,2]
[328206114,1717059032896,-294.98,0.00028,2]
[328206115,1717059032905,-294.98,0.00028074,2]
[328206116,1717059032928,-252.49288459,0.0002808,2]
[328206117,1717059032943,-294.98,0.00028148,2]
[328206119,1717059032958,-300.0,0.000282,2]
[328206122,1717059032973,-294.98,0.00028222,2]
[328206124,1717059032985,-294.98,0.00028295,2]
[328206127,1717059032999,-315.26758786,0.00028362,2]
[328206130,1717059033016,-87.34856616,0.00028362,2]
[328206132,1717059033034,-155.35686898,0.00028363,2]
[328206135,1717059033049,-43.00003088,0.00028363,2]
[328206136,1717059033073,-3051.3055662,0.00028363,2]
[328206137,1717059033089,-2234.00695061,0.00028363,7]
[328206138,1717059033102,-536.52210812,0.00028363,2]
[328206139,1717059033115,-1382.70872343,0.00028363,2]
[328206140,1717059033136,-155.0,0.00028363,2]
[328206141,1717059033151,-626.63948033,0.00028363,2]
[328206142,1717059033165,-344.9320909,0.00028363,2]
[328206143,1717059033179,-2860.92628404,0.00028363,2]
[328206144,1717059033194,-427.68338309,0.00028363,2]
[328206145,1717059033206,-155.39761068,0.00028363,2]
[328206146,1717059033218,-1391.74150623,0.00028363,2]
[328206147,1717059038835,-733.75849377,0.00028363,2]
[328206148,1717059038845,-120.8812375,0.00028364,2]
[328206149,1717059038857,-2068.36325204,0.00028364,2]
[328206150,1717059038866,-155.0,0.00028364,2]
[328206151,1717059038876,-3012.27317988,0.00028364,2]
[328206152,1717059038885,-16129.6301,0.00028365,2]
[328206153,1717059038895,-294.98,0.00028369,2]
[328206154,1717059038904,-176.41,0.00028465,2]
[328206155,1717059038913,-1000.0,0.00028469,2]
[328206156,1717059038922,-150.0,0.0002853,2]
[328206157,1717059038931,-300.0,0.00028571,2]
[328206158,1717059038941,-2166.6333,0.00028695,2]
[328206159,1717059038949,-3142.05830427,0.00028695,2]
[328206160,1717059038960,-4022.68609573,0.00028695,2]
[328206161,1717059038968,-200.0,0.000287,10]
[328206162,1717059038977,-150.0,0.0002876,2]
[328206163,1717059038987,-2623.59323111,0.00028794,2]
[328206164,1717059038996,-11899.65566114,0.00028794,2]
[328206165,1717059039005,-19920.66207202,0.00028795,2]
[328206166,1717059039016,-4377.28262798,0.00028795,2]
[328206167,1717059039025,-500.0,0.000288,10]
[328206168,1717059039035,-150.0,0.00028803,2]
[328206169,1717059039044,-150.0,0.00028824,2]
[328206170,1717059039053,-150.0,0.00028869,2]
[328206171,1717059039062,-874.6236,0.00028892,2]
[328206172,1717059039071,-26815.66817826,0.00028894,2]
[328206173,1717059039083,-40188.70718728,0.00028894,2]
[328206177,1717059039102,-490.00839542,0.00028894,2]
[328206179,1717059039116,-5862.51986911,0.00028894,2]
[328206181,1717059039131,-3817.10836993,0.00028894,2]
[328206183,1717059039140,-1000.0,0.00028894,2]
[328206185,1717059039150,-5548.50413645,0.00028895,2]
[328206187,1717059039158,-150.0,0.00028896,2]
[328206189,1717059039170,-800.0,0.000289,10]
[328206191,1717059039179,-150.0,0.00028929,2]
[328206193,1717059039188,-150.0,0.0002893,2]
[328206195,1717059039198,-300.0,0.00028942,2]
[328206197,1717059039210,-1500.0,0.00028964,2]
[328206199,1717059039219,-151.36,0.00028984,2]
[328206201,1717059039229,-230.53609246,0.00028984,2]
[328206203,1717059039238,-500.0,0.00028991,7]
[328206205,1717059039248,-500.0,0.00028991,7]
[328206207,1717059039257,-1452.87,0.00028991,7]
[328206209,1717059039266,-500.0,0.00028991,7]
[328206211,1717059039275,-500.0,0.00028991,7]
[328206213,1717059039284,-500.0,0.00028991,7]
[328206215,1717059039293,-354.86052498,0.00028991,7]
[328206217,1717059039304,-500.0,0.00028991,7]
[328206219,1717059039313,-500.0,0.00028991,7]
[328206221,1717059039323,-979.98,0.00028991,7]
[328206223,1717059039332,-500.0,0.00028991,7]
[328206225,1717059039341,-500.0,0.00028991,7]
[328206227,1717059039350,-500.0,0.00028991,7]
[328206229,1717059039359,-500.0,0.00028991,7]
[328206231,1717059039368,-708.28,0.00028991,7]
[328206233,1717059039377,-512.86,0.00028991,7]
[328206235,1717059039386,-500.0,0.00028992,7]
[328206237,1717059039397,-500.0,0.00028992,7]
[328206239,1717059039406,-500.0,0.00028992,7]
[328206241,1717059039415,-500.0,0.00028992,7]
[328206243,1717059039424,-500.0,0.00028992,7]
[328206245,1717059039434,-500.0,0.00028992,7]
[328206248,1717059039454,-500.0,0.00028992,7]
[328206251,1717059039464,-649.20122381,0.00028992,7]
[328206253,1717059039473,-500.0,0.00028992,7]
[328206255,1717059039483,-500.0,0.00028992,7]
[328206256,1717059039492,-500.0,0.00028992,2]
[328206258,1717059039503,-500.0,0.00028992,7]
[328206260,1717059039512,-500.0,0.00028992,7]
[328206262,1717059039522,-571.86227604,0.00028992,7]
[328206264,1717059039532,-500.0,0.00028992,7]
[328206266,1717059039542,-592.8032672,0.00028992,7]
[328206268,1717059039551,-500.0,0.00028992,7]
[328206270,1717059039561,-581.22468662,0.00028992,7]
[328206273,1717059039571,-500.0,0.00028992,7]
[328206275,1717059039581,-500.0,0.00028992,7]
[328206277,1717059039590,-500.0,0.00028992,7]
[328206279,1717059039599,-500.0,0.00028992,7]
[328206281,1717059039609,-503.16556473,0.00028992,7]
[328206283,1717059039618,-500.0,0.00028992,7]
[328206285,1717059039628,-500.0,0.00028992,7]
[328206287,1717059039638,-500.0,0.00028992,7]
[328206289,1717059039649,-500.0,0.00028992,7]
[328206291,1717059039658,-500.0,0.00028992,7]
[328206293,1717059039667,-816.72,0.00028992,7]
[328206295,1717059039677,-500.0,0.00028992,7]
[328206297,1717059039686,-500.0,0.00028992,7]
[328206299,1717059039696,-535.62137323,0.00028992,7]
[328206301,1717059039705,-500.0,0.00028992,7]
[328206303,1717059039715,-500.0,0.00028992,7]
[328206305,1717059039725,-500.0,0.00028992,7]
[328206307,1717059039735,-500.0,0.00028992,7]
[328206309,1717059039744,-500.0,0.00028992,7]
[328206311,1717059039755,-500.0,0.00028992,7]
[328206313,1717059039764,-500.0,0.00028992,7]
[328206315,1717059039774,-500.0,0.00028992,7]
[328206317,1717059039783,-500.0,0.00028992,7]
[328206319,1717059039792,-500.0,0.00028992,7]
[328206321,1717059039802,-500.0,0.00028992,7]
[328206323,1717059039811,-500.0,0.00028992,7]
[328206325,1717059039821,-500.0,0.00028992,7]
[328206327,1717059039830,-500.0,0.00028992,7]
[328206329,1717059039840,-559.56740337,0.00028992,7]
[328206331,1717059039850,-500.0,0.00028992,7]
[328206333,1717059039860,-500.0,0.00028992,7]
[328206335,1717059039869,-500.0,0.00028992,7]
[328206337,1717059039879,-500.0,0.00028992,7]
[328206339,1717059039890,-500.0,0.00028992,7]
[328206342,1717059039902,-500.0,0.00028992,7]
[328206344,1717059039911,-500.0,0.00028992,7]
[328206346,1717059039921,-500.0,0.00028992,7]
[328206348,1717059039930,-500.0,0.00028992,7]
[328206350,1717059039940,-500.0,0.00028992,7]
[328206352,1717059039950,-500.0,0.00028992,7]
[328206354,1717059039960,-197.8203479,0.00028992,7]
[328206356,1717059039970,-500.0,0.00028992,7]
[328206358,1717059039979,-500.0,0.00028992,7]
[328206360,1717059039988,-500.0,0.00028992,7]
[328206362,1717059039998,-500.0,0.00028992,7]
[328206364,1717059040008,-500.0,0.00028992,7]
[328206366,1717059040018,-500.0,0.00028992,7]
[328206368,1717059040028,-500.0,0.00028992,7]
[328206370,1717059040040,-500.0,0.00028992,7]
[328206372,1717059040050,-525.67,0.00028992,7]
[328206374,1717059040060,-500.0,0.00028992,7]
[328206376,1717059040070,-500.0,0.00028992,7]
[328206378,1717059040079,-500.0,0.00028992,7]
[328206380,1717059040088,-500.0,0.00028992,7]
[328206382,1717059040098,-644.02,0.00028992,7]
[328206384,1717059040107,-500.0,0.00028992,7]
[328206386,1717059040118,-500.0,0.00028992,7]
[328206388,1717059040129,-500.0,0.00028992,7]
[328206389,1717059040141,-649.6,0.00028992,7]
[328206390,1717059040152,-500.0,0.00028992,7]
[328206391,1717059040163,-500.0,0.00028992,7]
[328206392,1717059040172,-500.0,0.00028992,7]
[328206393,1717059040182,-500.0,0.00028992,7]
[328206394,1717059040192,-500.0,0.00028992,7]
[328206395,1717059040203,-500.0,0.00028992,7]
[328206396,1717059040212,-500.0,0.00028992,7]
[328206397,1717059040222,-1014.21,0.00028992,7]
[328206398,1717059040232,-2316.05,0.00028992,7]
[328206399,1717059040242,-500.0,0.00028992,7]
[328206400,1717059040252,-500.0,0.00028992,7]
[328206401,1717059040263,-500.0,0.00028992,7]
[328206402,1717059040273,-500.0,0.00028992,7]
[328206403,1717059040283,-2096.31,0.00028992,7]
[328206404,1717059040293,-500.0,0.00028992,7]
[328206405,1717059040304,-500.0,0.00028992,7]
[328206406,1717059040314,-500.0,0.00028992,7]
[328206407,1717059040323,-500.0,0.00028992,7]
[328206408,1717059040333,-533.22,0.00028992,7]
[328206409,1717059040343,-500.0,0.00028992,7]
[328206410,1717059040353,-558.5,0.00028992,7]
[328206411,1717059040363,-500.0,0.00028992,7]
[328206412,1717059040372,-500.0,0.00028992,7]
[328206413,1717059040382,-578.99620327,0.00028992,7]
[328206414,1717059040397,-3131.86,0.00028992,7]
[328206415,1717059040406,-500.0,0.00028992,7]
[328206416,1717059040415,-153.34502719,0.00028992,7]
[328206417,1717059040425,-1179.63,0.00028992,7]
[328206418,1717059040437,-560.55,0.00028992,7]
[328206419,1717059040447,-540.56887057,0.00028992,7]
[328206420,1717059040456,-517.33660806,0.00028992,7]
[328206421,1717059040466,-420.12549063,0.00028992,7]
[328206422,1717059040475,-526.07810441,0.00028992,7]
[328206423,1717059040485,-500.0,0.00028992,7]
[328206424,1717059040495,-501.23,0.00028992,7]
[328206425,1717059040505,-549.89380133,0.00028992,7]
[328206426,1717059040515,-849.25,0.00028992,7]
[328206427,1717059040525,-589.88059195,0.00028992,7]
[328206428,1717059040534,-500.0,0.00028992,7]
[328206429,1717059040544,-500.0,0.00028992,7]
[328206430,1717059040554,-500.0,0.00028992,7]
[328206431,1717059040563,-500.0,0.00028992,7]
[328206432,1717059040573,-500.0,0.00028992,7]
[328206433,1717059040582,-500.0,0.00028992,7]
[328206434,1717059040592,-500.0,0.00028993,7]
[328206435,1717059040602,-783.16,0.00028993,7]
[328206436,1717059040611,-500.0,0.00028993,7]
[328206437,1717059040621,-935.05,0.00028993,7]
[328206438,1717059040631,-1063.37,0.00028993,7]
[328206439,1717059040642,-727.19,0.00028993,7]
[328206440,1717059040651,-899.4,0.00028993,7]
[328206441,1717059040660,-500.0,0.00028993,2]
[328206442,1717059040670,-603.78,0.00028993,7]
[328206443,1717059040680,-500.0,0.00028993,2]
[328206444,1717059040689,-821.55,0.00028993,7]
[328206445,1717059040701,-618.42,0.00028993,7]
[328206446,1717059040710,-672.31,0.00028993,2]
[328206447,1717059040720,-965.42,0.00028993,7]
[328206448,1717059040730,-1327.75,0.00028993,7]
[328206449,1717059040739,-500.0,0.00028993,2]
[328206450,1717059040748,-500.0,0.00028993,2]
[328206451,1717059040758,-500.0,0.00028993,7]
[328206452,1717059040767,-500.0,0.00028993,7]
[328206453,1717059040776,-1056.81,0.00028993,7]
[328206454,1717059040786,-500.0,0.00028993,7]
[328206455,1717059040795,-641.26,0.00028993,7]
[328206456,1717059040804,-634.91,0.00028993,7]
[328206457,1717059040822,-500.0,0.00028993,7]
[328206458,1717059040833,-761.55,0.00028993,7]
[328206459,1717059040843,-635.24,0.00028993,7]
[328206461,1717059040853,-500.0,0.00028993,7]
[328206463,1717059040863,-500.0,0.00028993,7]
[328206465,1717059040873,-500.0,0.00028993,7]
[328206467,1717059040883,-543.86,0.00028993,7]
[328206469,1717059040894,-500.0,0.00028993,7]
[328206471,1717059040904,-500.0,0.00028993,7]
[328206474,1717059040914,-524.01550252,0.00028993,7]
[328206476,1717059040924,-500.0,0.00028993,7]
[328206478,1717059040935,-500.0,0.00028993,7]
[328206479,1717059040944,-1434.01,0.00028993,7]
[328206480,1717059040954,-500.0,0.00028993,7]
[328206481,1717059040963,-500.0,0.00028993,7]
[328206482,1717059040973,-535.88,0.00028993,7]
[328206483,1717059040983,-500.0,0.00028993,7]
[328206484,1717059040993,-500.0,0.00028993,7]
[328206485,1717059041003,-500.0,0.00028993,7]
[328206486,1717059041013,-524.25,0.00028993,7]
[328206487,1717059041022,-517.84,0.00028993,7]
[328206488,1717059041032,-500.0,0.00028993,7]
[328206489,1717059041042,-616.81,0.00028993,7]
[328206490,1717059041052,-577.08499103,0.00028993,7]
[328206491,1717059041062,-632.14,0.00028993,7]
[328206492,1717059041071,-594.6130571,0.00028993,7]
[328206493,1717059041082,-569.09,0.00028993,7]
[328206494,1717059041093,-205.34,0.00028993,7]
[328206495,1717059041104,-500.0,0.00028993,7]
[328206496,1717059041114,-500.0,0.00028993,7]
[328206497,1717059041124,-500.0,0.00028993,7]
[328206498,1717059041136,-500.0,0.00028993,7]
[328206499,1717059041149,-500.0,0.00028993,7]
[328206500,1717059041159,-500.0,0.00028993,7]
[328206501,1717059041168,-500.0,0.00028993,7]
[328206502,1717059041178,-543.19,0.00028993,7]
[328206503,1717059041189,-1057.43,0.00028993,7]
[328206504,1717059041199,-500.0,0.00028993,7]
[328206505,1717059041211,-500.0,0.00028993,7]
[328206506,1717059041220,-528.63,0.00028993,7]
[328206507,1717059041231,-500.0,0.00028993,7]
[328206508,1717059041240,-500.0,0.00028993,7]
[328206509,1717059041250,-500.0,0.00028993,7]
[328206510,1717059041259,-500.0,0.00028993,7]
[328206511,1717059041269,-500.0,0.00028993,7]
[328206512,1717059041279,-500.0,0.00028993,7]
[328206513,1717059041288,-500.0,0.00028993,7]
[328206514,1717059041299,-500.0,0.00028993,7]
[328206515,1717059041309,-500.0,0.00028993,7]
[328206516,1717059041320,-500.0,0.00028993,7]
[328206517,1717059041330,-500.0,0.00028993,7]
[328206518,1717059041340,-500.0,0.00028993,7]
[328206519,1717059041350,-500.0,0.00028993,7]
[328206520,1717059041360,-500.0,0.00028993,7]
[328206521,1717059041369,-1324.47,0.00028993,7]
[328206522,1717059041378,-500.0,0.00028993,7]
[328206523,1717059041388,-500.0,0.00028993,7]
[328206524,1717059041398,-500.0,0.00028993,7]
[328206525,1717059041408,-500.0,0.00028993,7]
[328206526,1717059041417,-518.32515791,0.00028993,7]
[328206527,1717059041427,-500.0,0.00028993,7]
[328206528,1717059041436,-500.0,0.00028993,7]
[328206529,1717059041446,-500.0,0.00028993,7]
[328206530,1717059041455,-1266.45,0.00028993,7]
[328206531,1717059041464,-500.0,0.00028993,7]
[328206532,1717059041473,-500.0,0.00028993,7]
[328206533,1717059041483,-500.0,0.00028993,7]
[328206534,1717059041492,-500.0,0.00028993,7]
[328206535,1717059041501,-500.0,0.00028993,7]
[328206536,1717059041512,-500.0,0.00028993,7]
[328206537,1717059041522,-500.0,0.00028993,7]
[328206538,1717059041532,-500.0,0.00028993,7]
[328206539,1717059041541,-500.0,0.00028993,7]
[328206540,1717059041550,-500.0,0.00028993,7]
[328206541,1717059041560,-594.79,0.00028993,7]
[328206542,1717059041569,-500.0,0.00028993,7]
[328206543,1717059041578,-500.0,0.00028993,7]
[328206544,1717059041587,-500.0,0.00028993,7]
[328206545,1717059041596,-500.0,0.00028993,7]
[328206546,1717059041607,-500.0,0.00028993,7]
[328206547,1717059041616,-500.0,0.00028993,7]
[328206548,1717059041626,-500.0,0.00028993,7]
[328206549,1717059041635,-1909.26,0.00028993,7]
[328206550,1717059041646,-500.0,0.00028993,7]
[328206551,1717059041655,-500.0,0.00028993,7]
[328206552,1717059041665,-500.0,0.00028993,7]
[328206553,1717059041674,-4662.12,0.00028993,7]
[328206554,1717059041684,-500.0,0.00028993,7]
[328206555,1717059041693,-500.0,0.00028993,7]
[328206556,1717059041702,-500.0,0.00028993,7]
[328206557,1717059041712,-500.0,0.00028993,7]
[328206558,1717059041722,-1396.56,0.00028993,7]
[328206559,1717059041732,-429.90200202,0.00028993,7]
[328206560,1717059041742,-500.0,0.00028993,7]
[328206561,1717059041752,-500.0,0.00028993,7]
[328206562,1717059041762,-500.0,0.00028993,7]
[328206563,1717059041772,-505.57373471,0.00028993,7]
[328206564,1717059041782,-500.0,0.00028993,7]
[328206565,1717059041791,-1061.8,0.00028993,7]
[328206566,1717059041802,-500.0,0.00028993,7]
[328206567,1717059041812,-500.0,0.00028993,7]
[328206568,1717059041821,-500.0,0.00028993,7]
[328206569,1717059041831,-535.40765065,0.00028993,7]
[328206570,1717059041841,-500.0,0.00028993,7]
[328206571,1717059041851,-1079.3,0.00028993,7]
[328206572,1717059041860,-500.0,0.00028993,7]
[328206573,1717059041871,-500.0,0.00028993,7]
[328206574,1717059041881,-500.0,0.00028993,7]
[328206575,1717059041893,-500.0,0.00028993,7]
[328206576,1717059041903,-500.0,0.00028993,7]
[328206577,1717059041912,-500.0,0.00028993,7]
[328206579,1717059041922,-500.0,0.00028993,7]
[328206581,1717059041931,-500.0,0.00028993,7]
[328206583,1717059041942,-152.750446,0.00028993,7]
[328206585,1717059041952,-500.0,0.00028993,7]
[328206587,1717059041961,-500.0,0.00028993,7]
[328206589,1717059041970,-727.26,0.00028993,7]
[328206591,1717059041979,-500.0,0.00028993,7]
[328206593,1717059041989,-500.0,0.00028993,7]
[328206595,1717059041998,-500.0,0.00028993,7]
[328206597,1717059042007,-1864.91,0.00028993,7]
[328206599,1717059042017,-528.45759778,0.00028993,7]
[328206602,1717059042211,-500.0,0.00028993,7]
[328206603,1717059042221,-500.0,0.00028993,7]
[328206604,1717059042231,-700.54,0.00028993,7]
[328206605,1717059042241,-500.0,0.00028993,7]
[328206606,1717059042251,-500.0,0.00028993,7]
[328206607,1717059042261,-500.0,0.00028993,7]
[328206608,1717059042270,-1550.31,0.00028993,7]
[328206609,1717059042279,-1163.34,0.00028993,7]
[328206610,1717059042288,-500.0,0.00028993,7]
[328206611,1717059042298,-372.62844207,0.00028993,7]
[328206612,1717059042307,-500.0,0.00028993,7]
[328206613,1717059042318,-500.0,0.00028993,7]
[328206614,1717059042327,-500.0,0.00028993,7]
[328206615,1717059042337,-500.0,0.00028993,7]
[328206616,1717059042347,-500.0,0.00028993,7]
[328206617,1717059042357,-500.0,0.00028993,7]
[328206618,1717059042366,-1692.3,0.00028993,7]
[328206619,1717059042375,-500.0,0.00028993,7]
[328206620,1717059042384,-500.0,0.00028993,7]
[328206621,1717059042395,-682.91,0.00028993,7]
[328206622,1717059042404,-500.0,0.00028993,7]
[328206623,1717059042413,-500.0,0.00028993,7]
[328206624,1717059042422,-767.76,0.00028993,7]
[328206625,1717059042432,-500.0,0.00028993,7]
[328206626,1717059042441,-500.0,0.00028993,7]
[328206627,1717059042451,-500.0,0.00028993,7]
[328206628,1717059042459,-500.0,0.00028993,7]
[328206629,1717059042469,-500.0,0.00028993,7]
[328206630,1717059042479,-500.0,0.00028993,7]
[328206631,1717059042488,-500.0,0.00028993,7]
[328206632,1717059042497,-500.0,0.00028993,7]
[328206633,1717059042507,-343.51736918,0.00028993,7]
[328206634,1717059042517,-500.0,0.00028993,7]
[328206635,1717059042527,-500.0,0.00028993,7]
[328206636,1717059042537,-500.0,0.00028993,7]
[328206637,1717059042546,-500.0,0.00028993,7]
[328206638,1717059042556,-70831.33408504,0.00028994,2]
[328206639,1717059042884,-326.27376454,0.00028894,2]
[328206640,1717059042895,-500.0,0.00028992,7]
[328206641,1717059042904,-71.68460606,0.00028994,2]
[328206642,1717059042927,-404.24487,0.00028994,2]
[328206643,1717059042937,-1348.37030117,0.00028994,2]
[328206644,1717059043038,-8035.40333089,0.00028994,2]
[328206645,1717059043049,-1143.31942868,0.00028994,2]
[328206646,1717059043155,-47619.87464655,0.00028994,2]
[328206647,1717059043170,-100965.03427534,0.00028994,2]
[328206648,1717059043183,-52660.34968842,0.00028994,2]
[328206649,1717059043199,-109041.45217484,0.00028994,2]
[328206650,1717059043226,-1308.18429658,0.00028994,2]
[328206652,1717059043238,-1500.44512466,0.00028994,2]
[328206653,1717059043327,-1767.23433332,0.00028994,2]
[328206654,1717059043342,-255.471,0.00028994,2]
[328206655,1717059043353,-2837.32402686,0.00028994,2]
[328206656,1717059043365,-822.51708282,0.00028994,2]
[328206657,1717059043482,-730.07140233,0.00028994,2]
[328206658,1717059043494,-652.62529538,0.00028994,2]
[328206659,1717059043510,-500.0,0.00028992,7]
[328206660,1717059043519,-21637.46349107,0.00028994,2]
[328206661,1717059043550,-10636.74608844,0.00028994,2]
[328206662,1717059043559,-500.0,0.00028994,2]
[328206663,1717059043569,-500.0,0.00028994,7]
[328206664,1717059043579,-550173.78289529,0.00028995,13]
[328206665,1717059043588,-500.0,0.00028995,7]
[328206666,1717059043598,-1106.73,0.00028995,7]
[328206667,1717059043607,-500.0,0.00028995,7]
[328206668,1717059043618,-500.0,0.00028995,7]
[328206669,1717059043628,-1146.3,0.00028995,7]
[328206670,1717059043638,-500.0,0.00028995,7]
[328206671,1717059043651,-500.0,0.00028995,7]
[328206672,1717059043660,-500.0,0.00028995,7]
[328206673,1717059043669,-500.0,0.00028995,7]
[328206674,1717059043679,-500.0,0.00028995,7]
[328206675,1717059043688,-500.0,0.00028995,7]
[328206676,1717059043697,-1135.65,0.00028995,7]
[328206677,1717059043707,-503.16633855,0.00028995,7]
[328206678,1717059043716,-534.65179793,0.00028995,7]
[328206679,1717059043726,-500.0,0.00028995,7]
[328206680,1717059043736,-500.0,0.00028995,7]
[328206681,1717059043746,-500.0,0.00028995,7]
[328206682,1717059043755,-500.0,0.00028995,7]
[328206683,1717059043764,-500.0,0.00028995,7]
[328206684,1717059043774,-500.0,0.00028995,7]